bitfinex/quotes_ETHUSD_20250219
["timestamp","ask_amount","ask_price","bid_price","bid_amount"]
[1739975028474,3.67721,2719.5,2719.0,0.8046]
[1739975028625,0.7877,2719.8,2719.0,0.8046]
[1739975028626,3.67702,2719.6,2719.0,0.8046]
[1739975028973,3.67695,2719.7,2719.1,7.41707288]
[1739975029155,3.67695,2719.7,2719.1,3.73946288]
[1739975029559,3.67701,2719.6,2719.1,3.73946288]
[1739975029942,3.67721,2719.5,2719.1,0.06186288]
[1739975030167,3.0,2719.9,2719.1,0.06186288]
[1739975030168,3.6773,2719.4,2719.1,0.06186288]
[1739975030375,3.67742,2719.3,2719.1,0.06186288]
[1739975030966,3.67755,2719.2,2719.1,0.06186288]
[1739975031294,3.67755,2719.2,2718.8,0.7883]
[1739975031499,3.67755,2719.2,2719.1,0.06178937]
[1739975031653,3.67755,2719.2,2718.8,0.7883]
[1739975031855,3.67755,2719.2,2719.1,0.06178937]
[1739975032202,3.67755,2719.2,2718.8,0.7883]
[1739975032399,3.67743,2719.3,2719.1,0.06178937]
[1739975032706,3.67743,2719.3,2719.2,0.06167622]
[1739975033073,8.12401,2719.6,2718.9,3.67794]
[1739975033271,8.12401,2719.6,2719.2,0.06167622]
[1739975033272,4.44688,2719.6,2719.2,0.06167622]
[1739975033502,0.444688,2719.5,2719.2,0.8117]
[1739975033714,3.67708,2719.6,2719.3,0.06156308]
[1739975034175,3.67717,2719.5,2719.4,0.06148145]
[1739975034359,3.67717,2719.5,2719.2,0.8117]
[1739975034573,3.6773,2719.4,2719.2,0.8117]
[1739975034761,3.67728,2719.4,2719.3,0.06159458]
[1739975034989,3.67714,2719.5,2719.2,0.8117]
[1739975035186,3.67723,2719.5,2719.2,0.8117]
[1739975035486,3.67723,2719.5,2719.3,0.06159458]
[1739975035689,0.7741,2719.8,2719.3,0.06159458]
[1739975036002,3.67721,2719.5,2719.4,0.06148145]
[1739975036203,3.67701,2719.6,2719.2,0.8117]
[1739975036364,3.67688,2719.7,2719.3,0.06159458]
[1739975036704,3.67688,2719.7,2719.2,0.8117]
[1739975036890,3.67688,2719.7,2719.4,0.0614552]
[1739975037059,3.67701,2719.6,2719.3,0.06159983]
[1739975037265,3.67701,2719.6,2719.5,0.06137357]
[1739975037504,3.67701,2719.6,2719.4,0.0614867]
[1739975037706,3.67701,2719.6,2719.5,0.06137357]
[1739975038201,3.67688,2719.7,2719.5,0.06137357]
[1739975038374,4.122208,2719.6,2719.5,0.06137357]
[1739975038707,4.122208,2719.6,2719.2,0.8117]
[1739975038904,4.45084,2719.8,2719.2,0.8117]
[1739975039202,3.67674,2719.8,2719.3,0.06154733]
[1739975039402,3.67674,2719.8,2719.2,0.8117]
[1739975039619,3.67689,2719.7,2719.3,0.06154733]
[1739975039798,3.67703,2719.6,2719.2,0.8117]
[1739975039992,3.67689,2719.7,2719.3,0.06154733]
[1739975040215,3.67689,2719.7,2719.2,4.48925]
[1739975040418,3.67705,2719.6,2719.3,0.06154733]
[1739975040718,3.67705,2719.6,2719.2,1.628382]
[1739975040929,3.67705,2719.6,2719.4,0.06143419]
[1739975041222,3.67705,2719.6,2719.5,0.06132107]
[1739975041534,3.67705,2719.6,2719.2,0.8117]
[1739975041821,3.67705,2719.6,2719.3,0.06154733]
[1739975042021,3.67705,2719.6,2719.2,0.8117]
[1739975042227,3.67705,2719.6,2719.3,0.06154733]
[1739975042529,3.67689,2719.7,2719.2,0.8117]
[1739975042710,3.67689,2719.7,2719.4,0.06143419]
[1739975043023,3.67689,2719.7,2719.3,0.06154733]
[1739975043219,3.67689,2719.7,2719.2,4.93811]
[1739975043608,3.6766,2719.9,2719.3,0.06154733]
[1739975043794,3.6768,2719.8,2719.3,0.06154733]
[1739975044002,3.6768,2719.8,2719.2,8.61556]
[1739975044205,3.6768,2719.8,2719.3,0.06150008]
[1739975044601,3.6768,2719.8,2719.2,4.93808]
[1739975044797,3.6768,2719.8,2719.3,0.06150008]
[1739975045127,3.67687,2719.7,2719.2,4.93808]
[1739975045426,3.67677,2719.8,2719.3,3.73887008]
[1739975046015,3.6769,2719.7,2719.3,0.06150008]
[1739975046324,3.6769,2719.7,2719.2,4.93816]
[1739975046525,3.67677,2719.8,2719.4,0.06138694]
[1739975046730,3.67688,2719.7,2719.3,3.73890008]
[1739975046890,3.67688,2719.7,2719.5,0.06127382]
[1739975047086,3.67688,2719.7,2719.4,0.06138694]
[1739975047531,3.67688,2719.7,2719.2,4.48924]
[1739975047733,3.67675,2719.8,2719.5,0.06127382]
[1739975047898,3.67687,2719.7,2719.3,3.67741]
[1739975048099,3.67687,2719.7,2719.6,0.0611607]
[1739975048301,3.67687,2719.7,2719.3,3.67741]
[1739975048500,3.67687,2719.7,2719.6,0.0611607]
[1739975048800,3.67687,2719.7,2719.2,4.48923]
[1739975049018,3.67714,2719.6,2719.3,0.06150008]
[1739975049325,9.05649,2720.0,2719.2,0.8117]
[1739975049535,3.67707,2719.6,2719.4,0.06129244]
[1739975049831,3.67707,2719.6,2719.5,0.06118456]
[1739975050217,3.67719,2719.5,2719.2,0.8117]
[1739975050412,3.67737,2719.4,2719.3,0.06141082]
[1739975050611,3.67737,2719.4,2718.8,0.8142]
[1739975050922,3.67737,2719.4,2718.9,0.06186344]
[1739975051098,4.46672,2719.0,2718.9,0.06186344]
[1739975051729,3.67805,2718.9,2718.3,0.7689]
[1739975051935,3.67817,2718.8,2718.3,0.7689]
[1739975052137,3.67817,2718.8,2718.4,0.0624294]
[1739975052430,3.67819,2718.8,2718.4,0.0624294]
[1739975053034,3.67839,2718.6,2718.4,0.0624294]
[1739975053234,3.67823,2718.7,2718.2,8.269]
[1739975053380,7.35655,2718.7,2718.3,0.06254262]
[1739975053584,3.67823,2718.7,2718.3,0.06254262]
[1739975053829,3.67823,2718.7,2718.2,8.269]
[1739975054129,3.67823,2718.7,2718.3,0.06254262]
[1739975054425,3.67823,2718.7,2718.2,8.269]
[1739975054627,3.67823,2718.7,2718.2,11.94788]
[1739975054835,3.67823,2718.7,2718.3,0.06254262]
[1739975055130,3.67823,2718.7,2718.2,11.94788]
[1739975055422,3.67823,2718.7,2718.3,0.06294701]
[1739975055640,3.67803,2718.9,2718.2,11.94788]
[1739975055788,3.67803,2718.9,2718.3,0.06294701]
[1739975055991,3.7889,2719.0,2718.4,4.45176]
[1739975056189,3.0,2719.0,2718.5,0.06272059]
[1739975056385,5.38,2719.1,2718.5,3.74115059]
[1739975056692,9.05776,2719.1,2718.6,0.81928606]
[1739975057231,9.05776,2719.1,2718.7,0.06249419]
[1739975057535,3.0,2719.2,2718.7,3.67822]
[1739975057688,3.0,2719.2,2718.8,0.06238101]
[1739975058227,4.4581,2719.4,2718.8,3.74038101]
[1739975058394,3.67744,2719.3,2718.8,3.74038101]
[1739975058590,4.45812,2719.4,2718.8,7.87505911]
[1739975058792,4.45812,2719.4,2718.8,4.19704911]
[1739975059626,0.7808,2719.4,2718.8,4.19704911]
[1739975059834,3.67718,2719.5,2718.9,3.67795]
[1739975060043,3.67718,2719.5,2719.0,0.8483065]
[1739975060335,0.8069,2719.6,2719.0,0.8483065]
[1739975060336,4.48397,2719.6,2719.0,0.8483065]
[1739975060492,3.67717,2719.5,2719.0,0.8483065]
[1739975061123,3.67701,2719.6,2719.0,4.5260565]
[1739975061321,3.67701,2719.6,2719.0,4.97866215]
[1739975061629,4.48365,2719.8,2719.0,4.97865215]
[1739975061815,3.6766,2719.9,2719.2,3.67748]
[1739975062136,3.67696,2719.7,2719.3,0.06204625]
[1739975062304,3.67704,2719.6,2719.3,0.06204625]
[1739975062629,3.67687,2719.8,2719.0,1.23840565]
[1739975062630,3.67688,2719.7,2719.0,1.23840565]
[1739975062800,3.67688,2719.7,2719.1,0.49162557]
[1739975063193,3.67688,2719.7,2719.2,0.06215939]
[1739975063393,3.67687,2719.8,2719.2,0.06215939]
[1739975063593,4.50134,2720.0,2719.3,0.7972]
[1739975063917,4.49882,2720.2,2719.4,3.73920312]
[1739975064102,3.67633,2720.1,2719.4,3.73920312]
[1739975064310,4.49882,2720.2,2719.4,4.55803623]
[1739975064311,3.67653,2720.0,2719.4,4.55803623]
[1739975064526,3.67653,2720.0,2719.5,0.811]
[1739975064947,3.67653,2720.0,2719.6,0.06103995]
[1739975065425,3.67639,2720.1,2719.6,0.06103995]
[1739975065839,3.67654,2720.0,2719.6,0.06103995]
[1739975066261,3.6767,2719.9,2719.6,0.06103995]
[1739975068969,3.67653,2720.0,2719.6,0.06103995]
[1739975069947,3.67626,2720.2,2719.6,3.73797995]
[1739975070118,3.67634,2720.1,2719.6,3.73797995]
[1739975070323,3.67634,2720.1,2719.6,4.19287795]
[1739975070884,3.67634,2720.1,2719.6,0.51593795]
[1739975071161,7.3528,2720.1,2719.6,0.51593795]
[1739975071361,3.67634,2720.1,2719.6,0.06103995]
[1739975071521,3.67663,2719.9,2719.6,0.06103995]
[1739975073074,3.67647,2720.0,2719.6,0.06103995]
[1739975073437,3.6764,2720.1,2719.6,0.06103995]
[1739975074070,3.67654,2720.0,2719.6,0.06103995]
[1739975074278,7.35309,2720.0,2719.6,0.06103995]
[1739975074477,3.67668,2719.9,2719.6,0.06103995]
[1739975075073,3.67682,2719.8,2719.6,0.06103995]
[1739975075243,3.67681,2719.8,2719.6,0.06103995]
[1739975077279,3.67662,2719.9,2719.6,0.06103995]
[1739975078081,3.67682,2719.8,2719.6,0.06103995]
[1739975078574,3.67663,2719.9,2719.6,0.06103995]
[1739975078739,4.507,2720.0,2719.6,0.06103995]
[1739975078941,8.18359,2720.0,2719.6,0.06103995]
[1739975079247,0.8304,2720.0,2719.6,0.06103995]
[1739975079455,6.67629,2720.2,2719.7,0.8282]
[1739975079785,6.67621,2720.2,2719.8,0.06053024]
[1739975080141,6.67621,2720.2,2719.7,0.8282]
[1739975080338,6.67621,2720.2,2719.9,0.06041715]
[1739975080571,6.67621,2720.2,2719.8,0.06053024]
[1739975080885,3.67621,2720.2,2719.9,0.06041715]
[1739975081263,3.67626,2720.2,2719.7,4.50507]
[1739975081463,3.67626,2720.2,2719.8,0.06053024]
[1739975081679,3.67626,2720.2,2719.7,4.50507]
[1739975081883,3.6765,2720.0,2719.9,0.06041715]
[1739975082185,3.67634,2720.1,2719.8,0.06053024]
[1739975082474,3.67634,2720.1,2719.9,0.06041715]
[1739975082771,3.67634,2720.1,2719.7,0.8282]
[1739975082941,3.67634,2720.1,2720.0,0.06030407]
[1739975083439,3.67634,2720.1,2719.7,0.8282]
[1739975083639,3.67634,2720.1,2719.8,0.06053024]
[1739975083871,3.67634,2720.1,2719.7,0.8282]
[1739975084078,3.67634,2720.1,2719.8,0.06053024]
[1739975084378,3.67634,2720.1,2719.7,0.8282]
[1739975084582,3.67634,2720.1,2719.9,0.06041715]
[1739975084785,3.67634,2720.1,2719.8,0.06053024]
[1739975084939,3.67634,2720.1,2720.0,0.06030407]
[1739975085140,3.67634,2720.1,2719.9,0.06041715]
[1739975085341,3.67617,2720.3,2720.0,0.06030407]
[1739975085542,3.67621,2720.2,2720.0,0.06030407]
[1739975085750,3.67621,2720.2,2719.7,4.50504]
[1739975086240,3.67621,2720.2,2719.8,0.06053024]
[1739975086439,3.67621,2720.2,2719.7,4.50504]
[1739975086652,3.67621,2720.2,2719.8,0.06053024]
[1739975086852,3.67621,2720.2,2719.7,4.50504]
[1739975087053,3.67621,2720.2,2719.8,0.06053024]
[1739975087263,3.67621,2720.2,2719.7,4.50504]
[1739975087463,3.67621,2720.2,2719.8,0.06053024]
[1739975087677,3.67621,2720.2,2719.7,4.50504]
[1739975087882,3.67621,2720.2,2719.8,0.06053024]
[1739975088155,3.67621,2720.2,2719.7,4.50504]
[1739975088368,3.67621,2720.2,2719.9,0.06041715]
[1739975088566,3.67621,2720.2,2719.8,0.06047778]
[1739975088774,3.67621,2720.2,2720.0,0.0602516]
[1739975088990,3.67621,2720.2,2719.9,0.06036469]
[1739975089166,3.67621,2720.2,2719.7,4.50504]
[1739975089167,3.67621,2720.2,2720.1,0.06013853]
[1739975089367,3.67621,2720.2,2720.0,0.0602516]
[1739975089581,3.67621,2720.2,2720.1,0.06013853]
[1739975089960,3.67621,2720.2,2719.7,4.50504]
[1739975090186,3.67621,2720.2,2720.1,0.06013853]
[1739975090458,3.67641,2720.1,2719.7,0.8282]
[1739975092203,3.67613,2720.3,2719.7,4.50495]
[1739975092370,7.49853,2720.4,2719.8,3.67665]
[1739975092371,10.0,2720.2,2719.8,3.67665]
[1739975094594,10.0,2720.2,2719.9,3.67658]
[1739975095000,10.0,2720.2,2719.8,3.67672]
[1739975098706,13.67626,2720.2,2719.7,4.50506]
[1739975099060,3.67644,2720.1,2719.7,0.8282]
[1739975100206,3.67647,2720.0,2719.7,0.8282]
[1739975100411,0.8097,2719.8,2718.9,3.67795]
[1739975100699,3.67721,2719.5,2718.8,4.50408]
[1739975100917,4.45788,2719.4,2718.8,4.50408]
[1739975101259,3.67757,2719.2,2718.8,0.826]
[1739975101506,3.67757,2719.2,2718.6,4.47213]
[1739975101679,3.67757,2719.2,2718.6,5.313682]
[1739975102748,3.67742,2719.3,2718.7,3.67814]
[1739975103105,0.7806,2719.4,2718.9,3.67795]
[1739975103311,3.67716,2719.5,2718.9,3.67788]
[1739975103527,3.67716,2719.5,2719.0,0.05950912]
[1739975103724,3.67729,2719.4,2719.0,0.05950912]
[1739975104524,3.67716,2719.5,2719.0,0.05950912]
[1739975104728,3.67702,2719.6,2719.0,3.73732912]
[1739975104928,0.7639,2719.7,2719.2,3.6775]
[1739975105248,4.46443,2719.9,2719.2,3.6775]
[1739975105548,6.67675,2719.8,2719.3,0.05916967]
[1739975105842,3.0,2719.8,2719.3,0.05916967]
[1739975105995,3.67705,2719.6,2719.1,0.7519]
[1739975106198,3.67714,2719.5,2719.4,0.05905653]
[1739975106413,3.67714,2719.5,2719.1,0.7519]
[1739975106612,3.67714,2719.5,2719.4,0.05905653]
[1739975106817,3.67714,2719.5,2719.1,0.7519]
[1739975107045,3.67714,2719.5,2719.4,0.05905653]
[1739975107428,3.67699,2719.7,2719.1,0.7519]
[1739975107633,7.4645,2719.9,2719.4,0.05905653]
[1739975107833,3.67674,2719.8,2719.2,3.67753]
[1739975108000,3.67674,2719.8,2719.5,0.05896962]
[1739975108204,7.4645,2719.9,2719.3,3.6774]
[1739975108402,7.46441,2719.9,2719.6,0.0588565]
[1739975108605,3.67676,2719.8,2719.5,0.8323]
[1739975108802,3.67676,2719.8,2719.7,0.05874339]
[1739975109006,3.67676,2719.8,2719.6,0.0588565]
[1739975109239,3.67676,2719.8,2719.7,0.05874339]
[1739975109755,9.05649,2720.0,2719.7,0.05874339]
[1739975109960,3.6767,2719.9,2719.5,0.8323]
[1739975110126,3.6767,2719.9,2719.8,0.05863029]
[1739975110327,3.6767,2719.9,2719.5,0.8323]
[1739975110522,3.6767,2719.9,2719.8,0.05863029]
[1739975110727,3.6767,2719.9,2719.5,0.8323]
[1739975111054,3.67695,2719.7,2719.2,0.7783]
[1739975111259,3.67695,2719.7,2719.2,1.2681853]
[1739975111407,3.67695,2719.7,2719.2,0.7783]
[1739975111612,4.46962,2719.6,2719.2,0.7783]
[1739975112254,4.46969,2719.6,2719.2,0.7783]
[1739975112453,0.7926,2719.6,2719.2,0.7783]
[1739975112610,0.7926,2719.6,2719.2,4.45584]
[1739975112956,3.67677,2719.8,2719.3,0.445584]
[1739975113843,3.67709,2719.6,2719.3,0.445584]
[1739975114028,0.8104,2719.9,2719.2,0.7783]
[1739975114217,3.67702,2719.6,2719.2,0.7783]
[1739975114558,3.67702,2719.6,2718.9,4.47757]
[1739975114559,4.48586,2719.5,2718.9,4.47757]
[1739975114756,0.8087,2719.5,2718.9,4.47757]
[1739975114966,3.67701,2719.6,2719.1,3.67766]
[1739975115318,0.8328,2719.7,2718.9,4.47757]
[1739975115565,3.67708,2719.6,2719.0,3.6778]
[1739975115834,3.67708,2719.6,2719.1,3.67762]
[1739975116358,0.8328,2719.7,2719.2,3.67753]
[1739975116359,4.50968,2719.7,2719.2,3.67753]
[1739975116544,4.44491,2719.9,2719.4,4.43687]
[1739975116744,4.44491,2719.9,2719.4,0.7596]
[1739975117068,3.67691,2719.7,2719.2,5.195245]
[1739975117440,3.67691,2719.7,2719.2,8.872735]
[1739975117658,3.67691,2719.7,2719.3,0.57494368]
[1739975118059,4.44491,2719.9,2719.3,4.25225368]
[1739975118231,0.7683,2719.9,2719.3,4.25225368]
[1739975118430,3.67675,2719.8,2719.3,4.25225368]
[1739975118640,0.7683,2719.9,2719.4,0.05908273]
[1739975118641,3.67692,2719.7,2719.4,0.05908273]
[1739975119271,3.67692,2719.7,2719.2,0.7822]
[1739975119272,3.67692,2719.7,2719.2,4.45973]
[1739975119467,3.67692,2719.7,2719.5,0.05888049]
[1739975119658,3.67692,2719.7,2719.2,8.950951]
[1739975119854,3.67692,2719.7,2719.2,5.273421]
[1739975120058,3.67692,2719.7,2719.3,3.73650675]
[1739975120258,4.445,2719.9,2719.3,3.73650675]
[1739975120259,0.7683,2719.9,2719.3,3.73650675]
[1739975120479,3.67677,2719.8,2719.3,4.23321443]
[1739975120774,0.7683,2719.9,2719.4,3.67723]
[1739975121005,4.44503,2719.9,2719.4,3.67723]
[1739975121274,3.0,2720.0,2719.6,3.67694]
[1739975121574,3.0,2720.0,2719.7,0.05865426]
[1739975121727,3.0,2720.0,2719.6,3.67694]
[1739975121932,3.0,2720.0,2719.6,4.490691]
[1739975122269,3.0,2720.0,2719.7,0.05865426]
[1739975122429,6.67653,2720.0,2719.7,0.05865426]
[1739975122626,6.67653,2720.0,2719.5,4.50783]
[1739975122829,3.0,2720.0,2719.8,0.05854116]
[1739975123029,3.0,2720.0,2719.6,3.67698]
[1739975123263,10.8216,2720.2,2719.9,0.05842807]
[1739975123468,3.67635,2720.1,2719.6,3.67698]
[1739975123772,10.0,2720.2,2719.7,3.67677]
[1739975123977,13.67626,2720.2,2719.7,0.05865426]
[1739975124172,10.0,2720.2,2719.7,0.05865426]
[1739975124379,10.0,2720.2,2719.8,4.45972]
[1739975124533,10.0,2720.2,2719.8,4.51826116]
[1739975124740,10.0,2720.2,2719.8,4.51820116]
[1739975125145,10.0,2720.2,2719.9,3.67658]
[1739975125357,10.0,2720.2,2719.8,0.84154116]
[1739975125645,10.0,2720.2,2720.0,0.05831499]
[1739975125841,10.0,2720.2,2719.9,0.05842807]
[1739975126048,10.0,2720.2,2719.8,4.45962]
[1739975126049,10.0,2720.2,2720.1,0.05802895]
[1739975126261,10.0,2720.2,2720.0,0.05814202]
[1739975126461,10.0,2720.2,2720.1,0.05802895]
[1739975126861,10.0,2720.2,2719.8,4.45962]
[1739975127375,13.67625,2720.2,2719.9,0.05825511]
[1739975128569,10.0,2720.2,2719.9,3.73485511]
[1739975129193,10.0,2720.2,2719.9,0.05825511]
[1739975130309,10.0,2720.2,2719.9,3.73482511]
[1739975130612,10.0,2720.2,2720.0,3.67641]
[1739975130815,10.0,2720.2,2720.1,3.67633]
[1739975131112,10.0,2720.2,2720.0,0.05814202]
[1739975131278,10.0,2720.2,2720.1,0.05802895]
[1739975131478,10.0,2720.2,2719.9,4.49597251]
[1739975131675,10.0,2720.2,2720.0,3.67636]
[1739975131883,10.0,2720.2,2720.1,3.67633]
[1739975132081,10.0,2720.2,2720.1,4.98493617]
[1739975132292,10.0,2720.2,2720.1,5.04296512]
[1739975136211,10.0,2720.2,2720.1,5.76256078]
[1739975140201,10.0,2720.2,2720.1,6.02756078]
[1739975143721,10.0,2720.2,2720.1,11.38756078]
[1739975149321,10.0,2720.2,2720.1,6.62863078]
[1739975149523,10.0,2720.2,2720.1,6.13762461]
[1739975149923,10.0,2720.2,2720.1,9.81395461]
[1739975150669,10.7764,2720.2,2720.1,5.41802895]
[1739975152252,10.0,2720.2,2720.1,9.09435895]
[1739975154928,10.0,2720.2,2720.1,5.41802895]
[1739975155472,10.0,2720.2,2720.1,9.91775895]
[1739975155629,10.0,2720.2,2720.1,4.55775895]
[1739975160383,10.0,2720.2,2720.1,5.30899387]
[1739975161810,10.0,2720.2,2720.1,10.66899387]
[1739975162921,10.0,2720.2,2720.1,11.21899387]
[1739975163712,9.2578125,2720.2,2720.1,14.21899387]
[1739975164778,8.21614598,2720.2,2720.1,14.21899387]
[1739975165914,6.91163579,2720.2,2720.1,14.21899387]
[1739975166233,5.79e-06,2720.2,2720.1,14.49172816]
[1739975166381,0.8234,2721.3,2721.2,3.67484]
[1739975166816,0.8234,2721.3,2721.2,3.73014324]
[1739975167227,0.8234,2721.3,2721.2,0.05530324]
[1739975167894,0.8234,2721.3,2721.2,3.73014324]
[1739975168620,0.8234,2721.3,2721.2,0.05530324]
[1739975168835,0.8234,2721.3,2721.0,3.67502]
[1739975169043,0.8234,2721.3,2721.2,3.73014324]
[1739975169321,0.8234,2721.3,2721.2,3.67484]
[1739975169520,0.8234,2721.3,2721.2,3.73014324]
[1739975169894,0.7739,2721.7,2721.2,0.05530324]
[1739975170103,1.15129,2721.7,2721.3,3.67462]
[1739975170423,1.15129,2721.7,2721.4,3.7295773]
[1739975170831,1.15129,2721.7,2721.4,0.0550773]
[1739975171644,0.7739,2721.7,2721.5,3.67438]
[1739975171818,0.7739,2721.7,2721.5,3.72917158]
[1739975172202,0.7739,2721.7,2721.5,3.72912158]
[1739975172445,0.7527,2722.1,2721.6,3.6743]
[1739975172649,0.7527,2722.1,2721.7,3.67417]
[1739975174967,4.46438,2722.6,2721.9,3.72795189]
[1739975175274,0.446438,2722.5,2722.1,3.67358]
[1739975175480,0.446438,2722.5,2721.8,6.1489]
[1739975175481,0.7913,2722.6,2722.2,3.67344]
[1739975175685,0.7913,2722.6,2722.2,0.05373943]
[1739975176674,4.46435,2722.6,2722.2,0.05373943]
[1739975176876,4.46435,2722.6,2722.0,3.67375]
[1739975177339,4.46435,2722.6,2722.1,0.0537477]
[1739975177539,0.813718,2722.5,2722.1,0.0537477]
[1739975177884,0.813718,2722.5,2722.1,3.7273677]
[1739975178339,0.7913,2722.6,2722.2,3.67347]
[1739975178540,0.7913,2722.6,2722.3,3.7268719]
[1739975178768,0.818,2722.8,2722.3,3.7268719]
[1739975179274,4.49071,2722.8,2722.3,3.7268719]
[1739975179476,0.818,2722.8,2722.3,3.7268719]
[1739975179640,1.267044,2722.8,2722.3,3.67335]
[1739975179834,8.612524,2722.8,2722.4,0.05269734]
[1739975180091,4.939754,2722.8,2722.4,0.05269734]
[1739975180634,3.67284,2722.7,2722.4,0.05269734]
[1739975180864,4.939754,2722.8,2722.2,7.61189]
[1739975181063,4.1668754,2722.7,2722.5,0.05248508]
[1739975181309,3.67295,2722.6,2722.2,0.265]
[1739975181610,4.1668854,2722.7,2722.2,0.265]
[1739975181815,4.1668854,2722.7,2722.2,3.93837]
[1739975182422,0.8141,2722.5,2721.9,5.36]
[1739975182714,4.98531254,2722.5,2722.0,0.265]
[1739975183073,4.98531254,2722.5,2722.0,3.93872]
[1739975184717,8.65849254,2722.5,2722.0,3.93872]
[1739975185040,3.67323,2722.4,2722.0,0.265]
[1739975185179,3.67344,2722.3,2722.0,0.265]
[1739975185513,3.67323,2722.4,2722.0,0.265]
[1739975185717,3.67337,2722.3,2721.9,0.75173634]
[1739975186302,3.67349,2722.2,2721.9,0.75173634]
[1739975187019,0.86584725,2722.4,2721.9,0.75173634]
[1739975187224,3.67336,2722.3,2721.9,0.75173634]
[1739975187378,3.67345,2722.3,2721.9,0.75173634]
[1739975188521,3.6735,2722.2,2721.9,0.75173634]
[1739975188726,0.7984,2722.1,2721.9,0.75173634]
[1739975189494,0.7984,2722.1,2721.7,5.625]
[1739975189703,4.47205,2722.1,2721.7,5.625]
[1739975190101,5.286599,2722.1,2721.7,5.625]
[1739975190613,5.286599,2722.1,2721.8,0.7521039]
[1739975190994,1.612949,2722.1,2721.8,0.7521039]
[1739975191686,5.286589,2722.1,2721.8,0.7521039]
[1739975193241,5.286589,2722.1,2721.9,0.05352865]
[1739975193623,8.960319,2722.1,2721.9,0.05352865]
[1739975194031,5.286589,2722.1,2721.9,0.05352865]
[1739975194541,8.960339,2722.1,2721.9,0.05352865]
[1739975195440,5.286589,2722.1,2721.9,0.05352865]
[1739975196144,3.67376,2722.0,2721.9,0.05352865]
[1739975196561,5.286589,2722.1,2721.9,0.05352865]
[1739975196915,8.960329,2722.1,2721.9,0.05352865]
[1739975197356,3.67376,2722.0,2721.9,0.05352865]
[1739975198256,4.5697949,2722.0,2721.9,0.05352865]
[1739975200042,5.3301949,2722.0,2721.9,0.05352865]
[1739975200625,4.4343,2721.9,2721.8,0.01969446]
[1739975202772,13.26416091,2721.9,2721.8,4.46e-06]
[1739975202937,27.18845629,2721.9,2721.8,4.46e-06]
[1739975203266,30.79530135,2721.9,2721.8,4.46e-06]
[1739975203473,31.54490191,2721.9,2721.8,4.46e-06]
[1739975204245,0.778,2721.7,2720.6,0.265]
[1739975204461,3.0,2721.8,2720.6,0.265]
[1739975204462,3.6754,2720.8,2720.6,0.265]
[1739975204823,3.67552,2720.7,2720.6,0.265]
[1739975205046,3.67588,2720.5,2720.2,0.7728]
[1739975205381,3.67601,2720.4,2720.1,0.265]
[1739975206070,4.47768,2720.5,2720.1,0.265]
[1739975207375,8.15357,2720.5,2720.1,0.265]
[1739975207558,4.47768,2720.5,2720.1,0.265]
[1739975208233,7.48855,2721.2,2720.3,3.67603]
[1739975208468,3.6752,2721.0,2720.4,0.7893]
[1739975208828,3.6752,2721.0,2720.5,0.05487666]
[1739975209441,0.8137,2721.2,2720.5,0.05487666]
[1739975209442,3.67507,2721.1,2720.5,0.05487666]
[1739975209638,3.67513,2721.0,2720.5,0.05487666]
[1739975210129,3.67534,2720.9,2720.5,0.05487666]
[1739975210933,4.042874,2720.9,2720.5,0.05487666]
[1739975211271,3.67565,2720.6,2720.5,0.05487666]
[1739975211480,3.67592,2720.5,2719.9,6.4324]
[1739975211626,3.67598,2720.4,2719.9,6.4324]
[1739975211827,3.6761,2720.3,2719.9,6.4324]
[1739975212077,3.67624,2720.2,2719.9,6.1674]
[1739975212371,3.67635,2720.1,2719.9,5.36]
[1739975212727,0.8012,2720.4,2719.7,0.8034]
[1739975212927,3.67645,2720.1,2719.5,0.8071]
[1739975213132,3.6766,2719.9,2719.5,0.8071]
[1739975213947,1.197445,2720.0,2719.5,0.8071]
[1739975214275,0.8298,2720.0,2719.5,4.4842]
[1739975215163,0.7603,2720.3,2719.5,4.48415]
[1739975215361,0.7603,2720.3,2719.6,3.67691]
[1739975215676,3.67621,2720.2,2719.6,3.67691]
[1739975215996,3.6764,2720.1,2719.5,4.48415]
[1739975216793,3.67629,2720.2,2719.6,3.67693]
[1739975217184,3.67629,2720.2,2719.5,4.48415]
[1739975217392,3.67629,2720.2,2719.5,8.1612]
[1739975217683,3.6762,2720.2,2719.6,3.6769]
[1739975217896,7.35248,2720.2,2719.6,3.6769]
[1739975218361,3.67635,2720.1,2719.6,3.6769]
[1739975218764,3.67621,2720.2,2719.7,3.67679]
[1739975219290,3.67634,2720.1,2719.6,3.6769]
[1739975219599,3.67634,2720.1,2719.5,4.48415]
[1739975219991,3.67621,2720.2,2719.6,3.67694]
[1739975220189,3.67621,2720.2,2719.6,3.67699]
[1739975220390,3.67621,2720.2,2719.5,0.8071]
[1739975220391,3.67659,2720.0,2719.5,0.8071]
[1739975220552,3.6768,2719.8,2719.3,0.7847]
[1739975220757,3.6768,2719.8,2719.3,1.0497]
[1739975220970,3.6768,2719.8,2719.3,0.7847]
[1739975221197,3.67707,2719.6,2719.1,1.0171]
[1739975221426,0.7672,2719.6,2719.1,7.69472]
[1739975221569,0.7672,2719.6,2719.2,3.67751]
[1739975222592,0.7672,2719.6,2719.1,4.0171]
[1739975222758,4.44421,2719.6,2719.1,7.69478]
[1739975222954,4.44421,2719.6,2719.1,7.42978]
[1739975223311,4.44421,2719.6,2718.8,5.36]
[1739975223312,3.67804,2718.9,2718.3,3.67869]
[1739975223483,4.43856,2719.1,2718.5,0.265]
[1739975223681,0.7608,2719.1,2718.5,3.94348]
[1739975224054,0.7608,2719.1,2718.5,7.62183]
[1739975224255,0.7608,2719.1,2718.5,3.94341]
[1739975225671,4.43851,2719.1,2718.5,3.94341]
[1739975226166,0.7608,2719.1,2718.5,7.62182]